bitfinex-derivatives/quotes_BNBF0:USTF0_20250101
["timestamp","ask_amount","ask_price","bid_price","bid_amount"]
[1735716016793,0.26117683,705.37,704.35,1.06384313]
[1735716016992,1.06230199,705.38,704.35,1.06384313]
[1735716017191,0.26113861,705.37,704.35,1.06384313]
[1735716017388,0.26113782,705.36,704.35,1.06384313]
[1735716017592,0.26113782,705.35,704.46,1.06384313]
[1735716017787,0.26113782,705.34,704.46,1.06384313]
[1735716017995,0.26113782,705.33,704.46,1.06384313]
[1735716018200,1.06230199,705.45,704.46,1.06384313]
[1735716018397,0.26114266,705.44,704.46,1.06384313]
[1735716018696,1.06230199,705.41,704.46,1.06384313]
[1735716018895,0.26114266,705.4,704.46,1.06384313]
[1735716019795,0.26113627,705.39,704.5,1.06384313]
[1735716019995,0.26113627,705.38,704.5,1.06384313]
[1735716020195,0.26113627,705.37,704.5,1.06384313]
[1735716020495,0.26113627,705.36,704.5,1.06384313]
[1735716020699,0.26113627,705.35,704.5,1.06384313]
[1735716020994,0.26113627,705.34,704.51,1.06384313]
[1735716021190,0.26113627,705.33,704.51,1.06384313]
[1735716021396,1.06230199,705.42,704.51,1.06384313]
[1735716021593,0.26112696,705.41,704.51,1.06384313]
[1735716022195,0.26112696,705.41,704.54,1.06384313]
[1735716022396,0.26113071,705.4,704.54,1.06384313]
[1735716022597,0.26113071,705.39,704.54,1.06384313]
[1735716022797,0.26113071,705.38,704.54,1.06384313]
[1735716022998,0.26113071,705.37,704.54,1.06384313]
[1735716023193,1.06230199,705.46,704.52,1.06384313]
[1735716023398,0.26112851,705.45,704.52,1.06384313]
[1735716023903,1.06230199,705.46,704.52,1.06384313]
[1735716024201,1.06230199,705.48,704.52,1.06384313]
[1735716025302,1.06230199,705.58,704.4,1.06384313]
[1735716025500,0.26112983,705.57,704.4,1.06384313]
[1735716026099,1.32343182,705.57,704.4,1.06384313]
[1735716026300,0.26112983,705.56,704.4,1.06384313]
[1735716027103,0.26112983,705.56,704.41,1.06384313]
[1735716027702,0.26112806,705.55,704.41,1.06384313]
[1735716027901,0.26112806,705.54,704.41,1.06384313]
[1735716028103,0.26112806,705.53,704.41,1.06384313]
[1735716028302,0.26112806,705.52,704.41,1.06384313]
[1735716028498,0.26112806,705.51,704.41,1.06384313]
[1735716028699,0.26112806,705.5,704.41,1.06384313]
[1735716028899,1.06230199,705.57,704.41,1.06384313]
[1735716029102,0.26113292,705.56,704.41,1.06384313]
[1735716029501,0.26113292,705.55,704.41,1.06384313]
[1735716029701,1.06230199,705.58,704.41,1.06384313]
[1735716030102,0.26114399,705.57,704.41,1.06384313]
[1735716030298,1.74216311,705.57,704.41,1.06384313]
[1735716030498,1.48101912,705.57,704.41,1.06384313]
[1735716030705,1.48101912,705.57,704.19,0.28401425]
[1735716030706,1.48101912,705.57,704.26,1.06384313]
[1735716030904,0.26116252,705.56,704.26,1.06384313]
[1735716031608,0.26116252,705.56,704.2,1.06384313]
[1735716031806,0.26116252,705.56,704.21,0.28400619]
[1735716032800,0.2611713,705.55,704.21,0.28400619]
[1735716033106,0.2611713,705.54,704.21,0.28400619]
[1735716033301,0.2611713,705.53,704.21,0.28400619]
[1735716033500,0.2611713,705.56,704.21,0.28400619]
[1735716033703,0.26117152,705.55,704.21,0.28400619]
[1735716033907,1.48101912,705.57,704.21,0.28400619]
[1735716033908,0.26117152,705.54,704.21,0.28400619]
[1735716034104,0.26117152,705.53,704.21,0.28400619]
[1735716034406,0.26117152,705.52,704.21,0.28400619]
[1735716034606,0.26117152,705.51,704.21,0.28400619]
[1735716034804,0.26117152,705.5,704.21,0.28400619]
[1735716035006,0.26117152,705.49,704.22,1.06384313]
[1735716035200,0.26117152,705.48,704.22,1.34784528]
[1735716035404,0.26117152,705.47,704.22,1.34784528]
[1735716035605,0.26120808,705.46,704.22,1.34784528]
[1735716035907,0.26120808,705.45,704.22,1.34784528]
[1735716036107,1.06230199,705.43,704.22,0.28400215]
[1735716036307,0.26120808,705.42,704.22,0.28400215]
[1735716038105,1.06230199,705.43,704.22,0.28400215]
[1735716038302,0.26120701,705.42,704.22,0.28400215]
[1735716038704,0.26120701,705.41,704.22,0.28400215]
[1735716039007,0.26120701,705.4,704.22,0.28400215]
[1735716039203,0.26120701,705.39,704.22,0.28400215]
[1735716039407,1.06230199,705.45,704.22,0.28400215]
[1735716039607,0.26120441,705.44,704.22,0.28400215]
[1735716040008,0.26120441,705.43,704.22,0.28400215]
[1735716040308,0.26120441,705.42,704.22,0.28400215]
[1735716040509,0.26120441,705.41,704.22,0.28400215]
[1735716040709,0.26120441,705.4,704.22,0.28400215]
[1735716040909,0.26120441,705.39,704.22,0.28400215]
[1735716041210,1.06230199,705.49,704.22,0.28400215]
[1735716041606,0.26120539,705.48,704.22,0.28400215]
[1735716042310,0.26120856,705.47,704.22,0.28400215]
[1735716042513,0.26120856,705.46,704.22,0.28400215]
[1735716042711,0.26120856,705.45,704.22,0.28400215]
[1735716042912,0.26120856,705.44,704.22,0.28400215]
[1735716043111,0.26120856,705.43,704.22,0.28400215]
[1735716043308,0.26120856,705.42,704.22,0.28400215]
[1735716043507,0.26120856,705.41,704.22,0.28400215]
[1735716043814,0.26120856,705.4,704.22,0.28400215]
[1735716044013,1.06230199,705.49,704.22,0.28400215]
[1735716044312,0.26118683,705.48,704.22,0.28400215]
[1735716044714,0.26118683,705.47,704.22,0.28400215]
[1735716045014,0.26118683,705.46,704.22,0.28400215]
[1735716045212,0.26118683,705.45,704.22,0.28400215]
[1735716045413,0.26118683,705.44,704.22,0.28400215]
[1735716045608,1.06230199,705.55,704.22,0.28400215]
[1735716045911,0.26118133,705.54,704.22,0.28400215]
[1735716046111,0.26118159,705.53,704.22,0.28400215]
[1735716046313,0.26118159,705.52,704.22,0.28400215]
[1735716046614,1.48101912,705.57,704.22,0.28400215]
[1735716046615,0.26118159,705.51,704.22,0.28400215]
[1735716046812,1.06230199,705.56,704.22,0.28400215]
[1735716046813,0.26118159,705.5,704.22,0.28400215]
[1735716047014,0.26118159,705.49,704.22,0.28400215]
[1735716047214,0.26118159,705.48,704.22,0.28400215]
[1735716047415,0.26118159,705.47,704.22,0.28400215]
[1735716047615,0.26118159,705.46,704.22,0.28400215]
[1735716047814,0.26118159,705.45,704.22,0.28400215]
[1735716048013,0.26118159,705.44,704.22,0.28400215]
[1735716048212,0.26118159,705.43,704.22,0.28400215]
[1735716048412,1.06230199,705.55,704.22,0.28400215]
[1735716048613,0.26119019,705.54,704.22,0.28400215]
[1735716049517,1.32349089,705.53,704.22,0.28400215]
[1735716049815,0.2611889,705.52,704.22,0.28400215]
[1735716051115,0.2611889,705.51,704.22,0.28400215]
[1735716051316,0.2611889,705.5,704.22,0.28400215]
[1735716051617,0.26118638,705.49,704.22,0.28400215]
[1735716051816,0.26118638,705.48,704.22,0.28400215]
[1735716052110,0.26118638,705.47,704.22,0.28400215]
[1735716052317,0.26118638,705.46,704.22,0.28400215]
[1735716052614,0.26118638,705.45,704.22,0.28400215]
[1735716052814,0.26118638,705.44,704.22,0.28400215]
[1735716053015,0.26118638,705.43,704.22,0.28400215]
[1735716053216,1.06230199,705.55,704.22,0.28400215]
[1735716053416,0.26118473,705.54,704.22,0.28400215]
[1735716054115,0.2611819,705.53,704.22,0.28400215]
[1735716054318,0.2611819,705.52,704.22,0.28400215]
[1735716054518,0.2611819,705.51,704.22,0.28400215]
[1735716054719,0.2611819,705.5,704.22,0.28400215]
[1735716054920,0.2611819,705.49,704.22,0.28400215]
[1735716055119,0.2611819,705.48,704.22,1.34784528]
[1735716056322,1.32348389,705.48,704.22,0.28400215]
[1735716056520,0.2611819,705.47,704.22,0.28400215]
[1735716057416,0.26117534,705.46,704.23,1.06384313]
[1735716057617,0.26117534,705.45,704.24,0.28399409]
[1735716057816,0.26117534,705.44,704.24,0.28399409]
[1735716058018,0.26117534,705.43,704.24,0.28399409]
[1735716058315,0.26117534,705.42,704.24,1.34783722]
[1735716058515,1.06230199,705.49,704.24,1.34783722]
[1735716058516,0.26117534,705.41,704.24,1.34783722]
[1735716058721,0.26117534,705.4,704.24,1.34783722]
[1735716058917,0.26117534,705.39,704.24,1.34783722]
[1735716059124,0.26117534,705.38,704.24,1.34783722]
[1735716059324,0.26117534,705.37,704.27,1.06384313]
[1735716059522,1.06230199,705.46,704.27,1.06384313]
[1735716059720,0.26117384,705.45,704.27,1.06384313]
[1735716060626,0.26117384,705.44,704.27,1.06384313]
[1735716060826,0.26117384,705.43,704.27,1.06384313]
[1735716061020,0.26117384,705.42,704.27,1.06384313]
[1735716061224,1.06230199,705.47,704.27,1.06384313]
[1735716061525,0.26117639,705.46,704.27,1.06384313]
[1735716061728,1.32347838,705.46,704.28,1.06384313]
[1735716061926,0.26117639,705.45,704.28,1.06384313]
[1735716062123,0.26117639,705.45,704.29,0.28397393]
[1735716062824,1.32347838,705.45,704.33,1.06384313]
[1735716063027,0.26117639,705.44,704.33,1.06384313]
[1735716063624,0.26117639,705.44,704.29,0.28397393]
[1735716063625,0.26117639,705.44,704.37,1.06384313]
[1735716063928,0.26115186,705.43,704.37,1.06384313]
[1735716064128,0.26115186,705.42,704.37,1.06384313]
[1735716064328,0.26115186,705.41,704.37,1.06384313]
[1735716064521,1.06230199,705.47,704.37,1.06384313]
[1735716064725,0.26115089,705.46,704.37,1.06384313]
[1735716064928,0.26115089,705.46,704.39,1.06384313]
[1735716065729,1.06230199,705.47,704.39,1.06384313]
[1735716066229,1.06230199,705.45,704.39,1.06384313]
[1735716067128,1.06230199,705.5,704.35,1.06384313]
[1735716067325,0.26114921,705.49,704.35,1.06384313]
[1735716068329,0.26114921,705.49,704.37,1.06384313]
[1735716068527,0.26114921,705.48,704.37,1.06384313]
[1735716068726,0.26114921,705.47,704.37,1.06384313]
[1735716069028,0.26114921,705.46,704.37,1.06384313]
[1735716069229,1.06230199,705.52,704.35,1.06384313]
[1735716069529,0.26114818,705.51,704.35,1.06384313]
[1735716070426,0.26114818,705.51,704.36,1.06384313]
[1735716071636,1.32345017,705.51,704.33,1.06384313]
[1735716071935,0.26115263,705.5,704.33,1.06384313]
[1735716072435,1.06230199,705.51,704.33,1.06384313]
[1735716072637,0.26115237,705.5,704.35,1.06384313]
[1735716073539,0.26115237,705.5,704.36,1.06384313]
[1735716074441,1.06230199,705.51,704.36,1.06384313]
[1735716074637,0.26114869,705.5,704.36,1.06384313]
[1735716075840,0.26114869,705.5,704.35,1.06384313]
[1735716077235,0.26114869,705.49,704.35,1.06384313]
[1735716077436,1.06230199,705.46,704.41,1.06384313]
[1735716077638,0.26114869,705.45,704.41,1.06384313]
[1735716078441,1.32345068,705.45,704.43,1.06384313]
[1735716078741,0.26114869,705.44,704.43,1.06384313]
[1735716079344,1.06230199,705.42,704.46,1.06384313]
[1735716079544,0.26114869,705.41,704.46,1.06384313]
[1735716079842,0.26114385,705.4,704.46,1.06384313]
[1735716080041,0.26114385,705.39,704.46,1.06384313]
[1735716080236,0.26114385,705.38,704.46,1.06384313]
[1735716080437,0.26114599,705.37,704.47,1.06384313]
[1735716080637,0.26114599,705.36,704.47,1.06384313]
[1735716080837,0.26114599,705.35,704.47,1.06384313]
[1735716081041,0.26114599,705.34,704.47,1.06384313]
[1735716081242,1.06230199,705.43,704.47,1.06384313]
[1735716081442,1.06230199,705.4,704.48,1.06384313]
[1735716081643,0.26114684,705.39,704.48,1.06384313]
[1735716082446,0.26114671,705.38,704.48,1.06384313]
[1735716082645,0.26114671,705.37,704.48,1.06384313]
[1735716082841,0.26114671,705.36,704.48,1.06384313]
[1735716083047,1.06230199,705.39,704.48,1.06384313]
[1735716083245,0.26114205,705.38,704.48,1.06384313]
[1735716084046,0.26114205,705.37,704.48,1.06384313]
[1735716084241,0.26114205,705.36,704.48,1.06384313]
[1735716084446,0.26114205,705.35,704.48,1.06384313]
[1735716084648,0.26114205,705.34,704.48,1.06384313]
[1735716084848,0.26114205,705.33,704.48,1.06384313]
[1735716085050,1.06230199,705.42,704.48,1.06384313]
[1735716085248,0.26114123,705.41,704.49,1.06384313]
[1735716085450,0.26114123,705.4,704.49,1.06384313]
[1735716085643,0.26114123,705.39,704.49,1.06384313]
[1735716085949,0.26114123,705.38,704.49,1.06384313]
[1735716086143,0.26114123,705.37,704.49,1.06384313]
[1735716086351,0.26114123,705.36,704.52,1.06384313]
[1735716086549,0.26114123,705.35,704.52,1.06384313]
[1735716086750,0.26114123,705.34,704.52,1.06384313]
[1735716086949,0.26114123,705.33,704.52,1.06384313]
[1735716087144,1.06230199,705.39,704.52,1.06384313]
[1735716087348,0.26114175,705.38,704.52,1.06384313]
[1735716087749,0.2611421,705.37,704.52,1.06384313]
[1735716087950,0.2611421,705.36,704.52,1.06384313]
[1735716088150,0.2611421,705.35,704.52,1.06384313]
[1735716088358,0.26114236,705.34,704.52,1.06384313]
[1735716088551,1.06230199,705.38,704.53,1.06384313]
[1735716089553,1.06230199,705.43,704.48,1.06384313]
[1735716089754,0.26114325,705.42,704.48,1.06384313]
[1735716090054,1.06230199,705.43,704.48,1.06384313]
[1735716090556,1.06230199,705.42,704.48,1.06384313]
[1735716091855,1.06230199,705.43,704.45,1.06384313]
[1735716092054,0.26114647,705.42,704.45,1.06384313]
[1735716092955,1.06230199,705.43,704.45,1.06384313]
[1735716093153,1.06230199,705.42,704.46,1.06384313]
[1735716094557,1.06230199,705.42,704.49,1.06384313]
[1735716095353,0.26114574,705.41,704.49,1.06384313]
[1735716095558,1.06230199,705.42,704.49,1.06384313]
[1735716095756,1.06230199,705.42,704.29,0.28397393]
[1735716095757,1.06230199,705.4,704.5,1.06384313]
[1735716096560,1.06230199,705.4,704.51,1.06384313]
[1735716096753,0.2611522,705.39,704.51,1.06384313]
[1735716097156,1.06230199,705.4,704.51,1.06384313]
[1735716097659,0.26115257,705.39,704.51,1.06384313]
[1735716097859,1.06230199,705.36,704.49,1.06384313]
[1735716098457,0.26115471,705.35,704.49,1.06384313]
[1735716098657,1.06230199,705.36,704.5,1.06384313]
[1735716099760,1.06230199,705.36,704.29,0.28397393]
[1735716099761,1.06230199,705.37,704.51,1.06384313]
[1735716100061,0.26114841,705.36,704.51,1.06384313]
[1735716101062,1.06230199,705.33,704.54,1.06384313]
[1735716101961,1.06230199,705.34,704.54,1.06384313]
[1735716102857,1.06230199,705.33,704.54,1.06384313]
[1735716105860,1.06230199,705.33,704.53,1.06384313]
[1735716107064,1.06230199,705.32,704.52,1.06384313]
[1735716108263,1.06230199,705.33,704.53,1.06384313]
[1735716108463,0.26118552,705.32,704.53,1.06384313]
[1735716108663,1.06230199,705.33,704.53,1.06384313]
[1735716108865,0.26118974,705.32,704.53,1.06384313]
[1735716109266,1.06230199,705.31,704.36,1.06384313]
[1735716110465,1.06230199,705.36,704.37,1.06384313]
[1735716110666,0.2611788,705.35,704.37,1.06384313]
[1735716111066,1.06230199,705.36,704.37,1.06384313]
[1735716111261,0.26117662,705.35,704.35,1.06384313]
[1735716111463,1.06230199,705.37,704.35,1.06384313]
[1735716111662,0.261177,705.36,704.35,1.06384313]
[1735716113270,1.06230199,705.37,704.35,1.06384313]
[1735716113671,1.06230199,705.37,704.29,0.28397393]
[1735716113672,1.06230199,705.38,704.34,1.06384313]
[1735716114470,1.06230199,705.4,704.3,1.06384313]
[1735716114668,0.26117729,705.39,704.3,1.06384313]
[1735716114868,1.06230199,705.4,704.3,1.06384313]
[1735716115069,0.26117798,705.39,704.3,1.06384313]
[1735716115469,0.26117798,705.39,704.31,1.06384313]
[1735716115766,1.06230199,705.42,704.31,1.06384313]
[1735716115970,0.26117758,705.41,704.31,1.06384313]
[1735716116566,0.26117758,705.41,704.3,1.06384313]
[1735716116769,0.2611729,705.4,704.3,1.06384313]
[1735716116964,1.06230199,705.42,704.3,1.06384313]
[1735716117571,1.06230199,705.43,704.31,1.06384313]
[1735716118068,0.26115192,705.42,704.31,1.06384313]
[1735716118672,0.26115192,705.42,704.29,0.28397393]
[1735716118673,1.06230199,705.48,704.36,1.06384313]
[1735716118873,0.26114611,705.47,704.36,1.06384313]
[1735716119273,0.26114487,705.46,704.36,1.06384313]
[1735716119469,0.26114487,705.45,704.36,1.06384313]
[1735716119678,1.06230199,705.48,704.36,1.06384313]
[1735716119971,1.06230199,705.48,704.41,1.06384313]
[1735716120174,0.2611457,705.47,704.41,1.06384313]
[1735716121475,0.2611457,705.47,704.29,0.28397393]
[1735716121476,0.26115898,705.46,704.4,1.06384313]
[1735716121773,0.26115898,705.45,704.4,1.06384313]
[1735716121972,0.26115898,705.44,704.4,1.06384313]
[1735716122173,0.26115898,705.43,704.4,1.06384313]
[1735716122369,0.26115898,705.42,704.4,1.06384313]
[1735716122572,0.26115898,705.41,704.37,1.06384313]
[1735716122771,1.06230199,705.44,704.37,1.06384313]
[1735716122971,0.2611616,705.43,704.37,1.06384313]
[1735716123776,1.06230199,705.41,704.4,1.06384313]
[1735716124074,0.2611616,705.4,704.4,1.06384313]
[1735716124474,0.2611616,705.4,704.29,0.28397393]
[1735716124475,1.06230199,705.33,704.35,1.06384313]
[1735716125173,0.2611616,705.32,704.35,1.06384313]
[1735716125374,1.06230199,705.33,704.35,1.06384313]
[1735716125971,1.06230199,705.35,704.37,1.06384313]
[1735716126170,0.26116002,705.34,704.37,1.06384313]
[1735716126371,1.06230199,705.35,704.37,1.06384313]
[1735716127275,1.06230199,705.39,704.41,1.06384313]
[1735716127475,0.26115065,705.38,704.41,1.06384313]
[1735716128175,0.26115065,705.38,704.45,1.06384313]
[1735716128374,0.26115065,705.37,704.45,1.06384313]
[1735716128570,0.26115065,705.36,704.45,1.06384313]
[1735716128793,0.26115065,705.35,704.45,1.06384313]
[1735716128971,0.26115065,705.34,704.45,1.06384313]
[1735716129174,0.26115558,705.33,704.45,1.06384313]
[1735716129377,0.26115558,705.32,704.49,1.06384313]
[1735716129676,0.26115558,705.31,704.49,1.06384313]
[1735716129877,0.26115558,705.3,704.49,1.06384313]
[1735716130077,0.26115558,705.29,704.49,1.06384313]
[1735716130375,1.06230199,705.35,704.49,1.06384313]
[1735716130675,0.26115315,705.34,704.5,1.06384313]
[1735716131771,1.06230199,705.34,704.49,1.06384313]
[1735716133180,1.06230199,705.64,704.34,1.06384313]
[1735716133377,1.06230199,705.64,704.35,0.28394974]
[1735716134277,1.4809666,705.69,704.37,1.06384313]
[1735716134477,1.4809666,705.69,704.38,0.28393764]
[1735716140383,0.26111496,705.68,704.38,0.28393764]
[1735716141282,1.4809666,705.69,704.38,0.28393764]
[1735716141479,0.26112391,705.68,704.38,0.28393764]
[1735716142286,0.26112093,705.67,704.38,0.28393764]
[1735716142586,0.26112093,705.66,704.38,0.28393764]
[1735716142788,0.26112093,705.65,704.38,0.28393764]
[1735716143082,0.26111891,705.64,704.38,0.28393764]
[1735716143287,0.26111891,705.63,704.38,0.28393764]
[1735716143488,0.26111891,705.62,704.38,0.28393764]
[1735716143687,1.4809666,705.69,704.38,0.28393764]
[1735716143887,0.26111118,705.68,704.38,0.28393764]
[1735716145087,0.26110961,705.67,704.38,0.28393764]
[1735716145281,0.26110961,705.66,704.38,0.28393764]
[1735716145482,0.26110961,705.65,704.38,0.28393764]
[1735716145686,0.26110961,705.64,704.38,0.28393764]
[1735716145887,0.26110961,705.63,704.38,0.28393764]
[1735716146089,1.4809666,705.69,704.38,0.28393764]
[1735716146289,0.26111651,705.68,704.38,0.28393764]
[1735716150291,0.26113554,705.67,704.38,0.28393764]
[1735716150490,0.26113554,705.66,704.38,0.28393764]
[1735716150690,1.06230199,705.56,704.38,1.34778077]
[1735716150987,0.26113696,705.55,704.38,1.34778077]
[1735716151993,1.06230199,705.53,704.4,1.06384313]
[1735716152194,0.26113696,705.52,704.4,1.06384313]
[1735716152790,0.26113696,705.52,704.41,1.06384313]
[1735716153088,0.26114628,705.51,704.41,1.06384313]
[1735716153288,0.26114628,705.5,704.41,1.06384313]
[1735716153488,0.26114628,705.49,704.41,1.06384313]
[1735716153694,0.26114628,705.48,704.41,1.06384313]
[1735716153899,1.48100337,705.6,704.38,1.34778077]
[1735716153900,0.26114628,705.47,704.38,1.34778077]
[1735716154194,0.26114628,705.46,704.38,1.34778077]
[1735716154394,0.26114628,705.45,704.38,1.34778077]
[1735716154595,0.26114628,705.44,704.38,1.34778077]
[1735716154890,1.06230199,705.49,704.38,1.34778077]
[1735716155095,0.26113547,705.48,704.43,1.06384313]
[1735716155293,0.26113547,705.47,704.43,1.06384313]
[1735716155489,0.26113547,705.46,704.43,1.06384313]
[1735716155694,0.26113547,705.45,704.43,1.06384313]
[1735716155995,0.26113547,705.44,704.43,1.06384313]
[1735716156195,1.48100337,705.6,704.38,0.28393764]
[1735716156196,0.26113547,705.43,704.4,1.06384313]
[1735716156491,1.06230199,705.5,704.4,1.06384313]
[1735716156695,0.26114395,705.49,704.4,1.06384313]
[1735716156895,0.26114395,705.49,704.39,1.06384313]
[1735716157095,0.26114395,705.48,704.39,1.06384313]
[1735716157292,0.26114395,705.47,704.39,1.06384313]
[1735716157495,0.26114395,705.46,704.39,1.06384313]
[1735716157796,0.26114395,705.45,704.39,1.06384313]
[1735716157991,1.06230199,705.48,704.4,1.06384313]
[1735716158197,0.26115079,705.47,704.4,1.06384313]
[1735716158690,0.26114831,705.46,704.4,1.06384313]
[1735716158891,0.26114831,705.45,704.4,1.06384313]
[1735716159097,0.26114831,705.44,704.43,1.06384313]
[1735716160100,0.26114831,705.44,704.4,1.06384313]
[1735716160292,0.26114831,705.43,704.4,1.06384313]
[1735716160496,0.26114831,705.42,704.4,1.06384313]
[1735716160698,0.26114831,705.41,704.4,1.06384313]
[1735716160894,1.06230199,705.47,704.41,1.06384313]
[1735716160895,0.26114831,705.4,704.41,1.06384313]
[1735716161102,1.06230199,705.47,704.41,1.06384313]
[1735716161301,0.26115035,705.46,704.41,1.06384313]
[1735716162300,1.32345234,705.46,704.41,1.06384313]
[1735716162496,0.26115035,705.45,704.41,1.06384313]
[1735716163302,1.32349083,705.44,704.38,0.28393764]
[1735716163600,0.26118884,705.43,704.38,0.28393764]
[1735716164597,0.26118884,705.42,704.38,0.28393764]
[1735716164801,0.26118884,705.41,704.38,0.28393764]
[1735716164999,0.26118884,705.4,704.38,0.28393764]
[1735716165200,0.26118884,705.39,704.38,0.28393764]
[1735716165402,0.26118884,705.38,704.38,0.28393764]
[1735716165599,0.26118884,705.37,704.38,0.28393764]
[1735716165797,1.06230199,705.47,704.38,0.28393764]
[1735716165998,0.26119318,705.46,704.38,0.28393764]
[1735716166596,1.06230199,705.44,704.38,0.28393764]
[1735716166799,0.26119131,705.43,704.38,0.28393764]
[1735716168103,0.26123732,705.42,704.38,0.28393764]
[1735716168297,0.26123732,705.41,704.38,0.28393764]
[1735716168502,0.26123732,705.4,704.38,0.28393764]
[1735716168803,0.26123982,705.39,704.38,0.28393764]
[1735716169003,0.26123982,705.38,704.38,0.28393764]
[1735716169202,1.06230199,705.47,704.38,0.28393764]
[1735716169403,0.26124166,705.46,704.38,0.28393764]
[1735716170503,0.26124166,705.45,704.38,0.28393764]
[1735716170700,0.26124166,705.44,704.38,0.28393764]
[1735716170897,0.26124166,705.43,704.38,0.28393764]
[1735716171101,0.26124166,705.47,704.38,0.28393764]
[1735716171407,0.26124653,705.46,704.38,0.28393764]
[1735716171702,0.26124653,705.45,704.38,0.28393764]
[1735716171902,0.26124653,705.44,704.38,0.28393764]
[1735716172103,0.26124653,705.47,704.38,0.28393764]
[1735716174401,1.48116621,705.48,704.38,0.28393764]
[1735716174704,0.2612425,705.47,704.38,0.28393764]
[1735716175009,1.48116621,705.48,704.38,0.28393764]
[1735716175205,0.26124049,705.47,704.38,0.28393764]
[1735716176505,1.48116621,705.48,704.38,0.28393764]
[1735716176707,0.26124067,705.47,704.38,0.28393764]
[1735716179205,0.26124101,705.46,704.38,0.28393764]
[1735716179403,1.48116621,705.48,704.38,0.28393764]
[1735716179404,1.06230199,705.41,704.38,0.28393764]
[1735716179607,0.26124101,705.4,704.38,0.28393764]
[1735716180109,1.48156032,705.39,704.38,0.28393764]
[1735716180311,0.26124101,705.38,704.38,0.28393764]
[1735716181109,2.54386231,705.39,704.38,0.28393764]
[1735716181309,0.26125002,705.38,704.38,0.28393764]
[1735716181911,0.26125004,705.37,704.38,0.28393764]
[1735716182111,0.26125004,705.36,704.38,0.28393764]
[1735716182312,0.26125004,705.35,704.38,0.28393764]
[1735716182512,0.26125004,705.34,704.38,0.28393764]
[1735716182814,0.26125004,705.33,704.38,0.28393764]
[1735716183009,0.26125004,705.32,704.38,0.28393764]
[1735716183210,0.26125004,705.31,704.38,0.28393764]
[1735716183411,0.26125004,705.3,704.38,0.28393764]
[1735716183712,0.26125004,705.29,704.38,0.28393764]
[1735716183911,0.26125004,705.28,704.38,0.28393764]
[1735716184113,0.26125004,705.27,704.38,0.28393764]
[1735716184314,0.26125004,705.26,704.38,0.28393764]
[1735716184514,0.26125004,705.25,704.38,0.28393764]
[1735716184814,0.26125004,705.24,704.38,0.28393764]
[1735716185009,0.26125004,705.23,704.38,0.28393764]
[1735716185210,0.26125004,705.22,704.38,0.28393764]
[1735716185411,0.26125004,705.21,704.38,0.28393764]
[1735716185711,0.26125004,705.2,704.38,0.28393764]
[1735716186013,0.26125004,705.19,704.38,0.28393764]
[1735716186218,2.54386231,705.39,704.38,0.28393764]
[1735716186408,0.26124235,705.38,704.38,0.28393764]
[1735716186613,1.06230199,705.37,704.38,0.28393764]
[1735716186812,0.26124235,705.36,704.38,0.28393764]
[1735716187610,1.32354434,705.36,704.38,0.28393764]
[1735716187816,0.26124235,705.35,704.38,0.28393764]
[1735716188716,1.32354434,705.35,704.38,0.28393764]
[1735716188910,0.26124635,705.34,704.38,0.28393764]
[1735716189714,1.32354834,705.34,704.38,0.28393764]
[1735716189915,0.26124635,705.33,704.38,0.28393764]
[1735716191017,1.06230199,705.31,704.38,0.28393764]
[1735716191218,0.26124635,705.3,704.38,0.28393764]
[1735716191720,0.26124488,705.29,704.38,0.28393764]
[1735716191914,0.26124488,705.28,704.38,0.28393764]
[1735716192212,0.26124488,705.27,704.38,0.28393764]
[1735716192419,0.26124488,705.26,704.38,0.28393764]
[1735716193611,1.06230199,705.25,704.38,0.28393764]
[1735716193817,0.26124488,705.24,704.38,0.28393764]
[1735716194311,0.26124851,705.23,704.38,0.28393764]
[1735716194515,0.26124851,705.22,704.38,0.28393764]
[1735716194715,0.26124851,705.21,704.38,0.28393764]
[1735716194918,0.26124851,705.2,704.38,0.28393764]
[1735716195119,1.06230199,705.3,704.38,0.28393764]
[1735716195120,0.26124851,705.19,704.38,0.28393764]
[1735716195317,0.26124851,705.18,704.38,0.28393764]
[1735716195513,0.26124851,705.17,704.38,0.28393764]
[1735716195720,1.48160237,705.32,704.38,0.28393764]
[1735716195721,0.26124851,705.16,704.38,0.28393764]
[1735716195917,0.26124851,705.15,704.38,0.28393764]
[1735716196117,0.26124851,705.14,704.38,0.28393764]
[1735716196417,1.06230199,705.27,704.38,0.28393764]
[1735716196618,0.26125234,705.26,704.38,0.28393764]
[1735716196814,1.48160237,705.32,704.38,0.28393764]
[1735716196815,1.32355396,705.25,704.38,0.28393764]
[1735716197011,0.26125197,705.24,704.38,0.28393764]
[1735716197613,0.26124601,705.23,704.38,0.28393764]
[1735716197920,1.06230199,705.21,704.38,0.28393764]
[1735716198118,0.26124601,705.2,704.38,0.28393764]
[1735716199321,1.323548,705.2,704.38,0.28393764]
[1735716199519,0.26124601,705.19,704.38,0.28393764]
[1735716200218,1.06230199,705.17,704.38,0.28393764]
[1735716200417,0.26124601,705.16,704.38,0.28393764]
[1735716201419,1.323548,705.16,704.38,0.28393764]
[1735716201617,0.26124601,705.15,704.38,0.28393764]
[1735716202124,1.06230199,705.16,704.38,0.28393764]
[1735716202323,0.26124964,705.15,704.38,0.28393764]
[1735716202619,1.48160237,705.32,704.38,0.28393764]